Cogmind - Beta 10.2 @@@ ROGUE MODE // 2022.01.03 @ 17:47:01 Player: KeepAwake2 Result: Destroyed by D-53 Grenadier with Mini Grenade Launcher Performance ------------- Evolutions (1) 500 Regions Visited (4) 800 Robots Destroyed (22) 110 Value Destroyed (638) 638 Prototype IDs (7) 140 Alien Tech Used (0) 0 Bonus (-127) -127 TOTAL SCORE: 2061 Bonus ------- Follower Combat Kills 145 Friendly Fire -272 Cogmind --------- Core Integrity 0/400 Matter 295/300 Energy 100/100 System Corruption 4% Temperature Cool (0) Movement Core (300) Ox5 Location -9/Mines Parts ------- > --- POWER (1) -------- (None) > --- PROPULSION (4) --- (None) > --- UTILITY (2) ------ Large Storage Unit Improved Signal Interpreter > --- WEAPON (2) ------- (None) > --- INVENTORY (10) --- Light Ion Engine Improved Heat Sink Large Storage Unit Sensor Array Heavy Armor Plating Thief Drone Bay (3/3) EMP Blaster Mining Laser Peak State ------------ > --- POWER ------------ Light Ion Engine > --- PROPULSION ------- Aluminum Leg Aluminum Leg Aluminum Leg Aluminum Leg > --- UTILITY ---------- Large Storage Unit Thief Drone Bay > --- WEAPON ----------- EM Pulse Gun Shock Rifle > --- INVENTORY -------- Light Nuclear Core Small Storage Unit Heavy Armor Plating Grenade Launcher Mining Laser [Rating: 18] Favorites ----------- Power Light Nuclear Core Engine Ion Engine Power Core Light Nuclear Core Propulsion Aluminum Leg Leg Aluminum Leg Utility Small Storage Unit Device Thief Drone Bay Storage Small Storage Unit Processor Improved Signal Interpreter Protection Medium Armor Plating Weapon Shock Rifle Energy Gun Shock Rifle Ballistic Gun Assault Rifle Launcher Grenade Launcher Build | -11 -10 -10 -9 -9 ------- Run | Scr Mat Min Mat Min Slots Evolved 2 | . . . 2 . Power . | . . . . . Propulsion 2 | . . . 2 . Utility . | . . . . . Weapon . | . . . . . Parts Attached 46 | 6 8 6 25 1 Power 6 | 1 1 2 2 . Engine 3 | 1 1 1 . . Core 3 | . . 1 2 . Reactor . | . . . . . Propulsion 22 | 2 3 . 16 1 Treads . | . . . . . Leg 22 | 2 3 . 16 1 Wheel . | . . . . . Hover . | . . . . . Flight . | . . . . . Utility 8 | 1 1 2 4 . Device 1 | . . 1 . . Storage 4 | 1 1 1 1 . Processor 1 | . . . 1 . Hackware . | . . . . . Protection 2 | . . . 2 . Artifact . | . . . . . Weapon 10 | 2 3 2 3 . Energy Gun 5 | 1 1 2 1 . Energy Cannon . | . . . . . Ballistic Gun 3 | 1 2 . . . Ballistic Cannon . | . . . . . Launcher 2 | . . . 2 . Special Weapon . | . . . . . Impact Weapon . | . . . . . Slashing Weapon . | . . . . . Piercing Weapon . | . . . . . Special Melee Weapon . | . . . . . Unidentified Prototypes 1 | . . 1 . . Parts Lost 11 | . . . 3 8 Power 1 | . . . . 1 Propulsion 5 | . . . . 5 Utility 1 | . . . 1 . Weapon 4 | . . . 2 2 Highest Loss Streak 8 | . . . 3 8 Average Slot Usage (%) 97 | . 99 100 94 89 Engine 7 | . 14 13 . . Core 4 | . . . 10 9 Leg 34 | . 28 28 44 38 Device 1 | . . 5 . . Storage 18 | . 27 22 11 11 Processor 2 | . . . 4 11 Protection 1 | . . . 4 . Energy Gun 16 | . 14 26 9 9 Ballistic Gun 4 | . 14 1 . . Launcher 3 | . . . 9 10 Naked Turns . | . . . . . Heaviest Build 33 | 10 16 28 33 25 Greatest Support 40 | 20 20 20 40 40 Greatest Overweight (x) 5 | 3 . 1 . 5 Average Overweight (x) . | . . . . . Largest Inventory Capacity 12 | 6 8 12 10 10 Average Capacity 9 | 5 7 8 10 10 Most Carried 10 | 2 8 8 10 10 Average Carried 8 | 1 6 7 9 9 Final Capacity 10 | 6 8 10 10 10 Final Carried 10 | 2 8 8 10 9 Class Distribution -------------------- 64% | Mutant 35% | Scavenger-Mutant Dominant Class ---------------- Mutant | -10/Materials Mutant | -10/Mines Scavenger-Mutant | -9/Materials Scavenger-Mutant | -9/Mines Resources | -11 -10 -10 -9 -9 ----------- Run | Scr Mat Min Mat Min Matter Collected 736 | 203 143 90 300 . Remotely . | . . . . . Salvage Created 1012 | . 358 45 607 2 Parts 49 | . 18 2 29 . Haulers Intercepted 1 | . . . 1 . Recyclers Shooed 1 | . 1 . . . Parts Field Recycled . | . . . . . Retrieved Matter . | . . . . . Parts Self-Destructed . | . . . . . Prevented . | . . . . . Kills | -11 -10 -10 -9 -9 ------- Run | Scr Mat Min Mat Min Combat Hostiles Destroyed 14 | . 4 1 8 1 Guns 11 | . 4 1 6 . AOE 3 | . . . 2 1 Classes Destroyed 8 | . 2 . 5 1 Builder 2 | . . . 2 . Hauler 1 | . . . 1 . Recycler 3 | . 2 . 1 . Watcher 2 | . . . 2 . Grunt 10 | . 4 1 5 . Brawler 1 | . . . 1 . Sentry 3 | . . . 3 . Assembled 1 | . . . . 1 Best Kill Streak 3 | . 3 1 3 1 Combat Bots Only 2 | . 2 1 2 1 Max Kills in Single Turn 2 | . 1 1 2 1 Gunslinging . | . . . . . Exploded 1 | . . . 1 1 Melee . | . . . . . Uniques/NPCs Destroyed . | . . . . . Combat | -11 -10 -10 -9 -9 -------- Run | Scr Mat Min Mat Min Damage Taken 1748 | . 186 4 760 798 Core 463 | . 14 . 116 333 Absorbed by Shields . | . . . . . Core Remaining (%) 97 | 100 . 94 . . Volleys Fired 51 | . 12 1 35 3 Largest 2 | . 2 2 2 2 Hottest 90 | . 60 90 90 75 Shots Fired 96 | . 24 2 66 4 Gun 88 | . 24 2 60 2 Cannon . | . . . . . Launcher 8 | . . . 6 2 Special . | . . . . . Kinetic 12 | . 12 . . . Thermal 12 | . 12 . . . Explosive 8 | . . . 6 2 Electromagnetic 64 | . . 2 60 2 Robot Hit Streak 15 | . 9 9 15 1 Robot Miss Streak 5 | . 2 . 5 3 Penetration Max . | . . . . . Secondary Targets . | . . . . . Shots Hit Robots 60 | . 18 1 39 2 Core Hits 44 | . 14 1 26 3 Critical Hits . | . . . . . Critical Kills . | . . . . . Critical Parts Destroyed . | . . . . . Melee Attacks . | . . . . . Impact . | . . . . . Slashing . | . . . . . Piercing . | . . . . . Sneak Attacks . | . . . . . Combat Hostiles . | . . . . . Follow-up Attacks . | . . . . . Damage Inflicted 1528 | . 227 13 1176 112 Guns 824 | . 227 13 559 25 Cannons . | . . . . . Explosions 704 | . . . 617 87 Melee . | . . . . . Ramming . | . . . . . Kinetic 100 | . 100 . . . Thermal 535 | . 127 . 408 . Explosive 254 | . . . 167 87 Electromagnetic 639 | . . 13 601 25 Impact . | . . . . . Slashing . | . . . . . Piercing . | . . . . . Highest Corruption 4 | . 2 2 . 4 Average Corruption 2 | . 2 2 . 4 Corruption Purged . | . . . . . Effects 8 | . 2 6 . . Message Errors 4 | . 1 3 . . Heat Flow Errors 1 | . 1 . . . Energy Discharges 1 | . . 1 . . Data Loss (minor) 2 | . . 2 . . Overload Shots . | . . . . . Overflow Damage 59 | . . . 59 . Projectiles . | . . . . . Explosions 59 | . . . 59 . Melee . | . . . . . Knockbacks . | . . . . . Impact . | . . . . . Kinetic . | . . . . . Secondary . | . . . . . Self-Inflicted Damage 46 | . . . . 46 Shots 1 | . . . . 1 Rammed . | . . . . . Targets Rammed . | . . . . . Kicked . | . . . . . Crushed . | . . . . . Highest Temperature 358 | . 132 30 358 12 Average Temperature 94 | . 28 18 117 4 Received Heat Transfer 462 | . 105 . 297 60 Effects 2 | . . . 2 . Energy Bleed 2 | . . . 2 . Siege Activations . | . . . . . Robots Corrupted . | . . . . . Combat Hostiles . | . . . . . Parts Fried 1 | . . . 1 . Impact Corruptions . | . . . . . Robots Melted . | . . . . . Combat Hostiles . | . . . . . Parts Melted 2 | . 1 . 1 . Heat Transferred 750 | . 300 . 450 . Parts Sabotaged . | . . . . . Parts Stolen . | . . . . . Parts Stripped . | . . . . . Power Chain Reactions 1 | . . . 1 . Missiles Intercepted . | . . . . . Alert | -11 -10 -10 -9 -9 ------- Run | Scr Mat Min Mat Min Peak Influence 381 | . 194 58 381 70 Initial 70 | . . 16 . 70 Average 105 | . 56 29 209 59 Maximum Alert Level 1 | . . . 1 . Low Security (%) 81 | 100 100 100 50 100 Level 1 18 | . . . 49 . Level 2 . | . . . . . Level 3 . | . . . . . Level 4 . | . . . . . Level 5 . | . . . . . High Security . | . . . . . Max Security . | . . . . . Squads Dispatched 1 | . . . 1 . Investigation . | . . . . . Extermination . | . . . . . Reinforcement 1 | . . . 1 . Assault . | . . . . . Garrison . | . . . . . Intercept . | . . . . . Construction Impeded . | . . . . . Haulers Reinforced . | . . . . . Stealth | -11 -10 -10 -9 -9 --------- Run | Scr Mat Min Mat Min Distress Signals 2 | . 1 . 1 . Communications Jammed . | . . . . . Distress Signals . | . . . . . Times Spotted 41 | . 10 2 16 13 Peak Tracking Total 9 | . 3 2 6 9 Tactical Retreats 2 | . 1 . 1 . Traps | -11 -10 -10 -9 -9 ------- Run | Scr Mat Min Mat Min Traps Triggered 1 | . 1 . . . Indirectly . | . . . . . Trap Hack Attempts . | . . . . . Triggered . | . . . . . Disarmed 6 | . . . 6 . Reprogrammed . | . . . . . Reused . | . . . . . Traps Extracted . | . . . . . Installed . | . . . . . Triggered . | . . . . . Machines | -11 -10 -10 -9 -9 ---------- Run | Scr Mat Min Mat Min Machines Disabled 6 | . . . 6 . Max in Single Turn 3 | . . . 3 . Machines Sabotaged . | . . . . . Garrisons Compromised . | . . . . . Overloaded Fab Kills . | . . . . . Fab Network Shutdowns . | . . . . . Hacking | -11 -10 -10 -9 -9 --------- Run | Scr Mat Min Mat Min Machines Accessed 18 | . 8 2 8 . Terminals 12 | . 6 . 6 . Fabricators . | . . . . . Repair Stations . | . . . . . Recycling Units 3 | . 2 . 1 . Scanalyzers 1 | . . . 1 . Garrison Access . | . . . . . Total Hacks 44 | . 16 2 26 . Successful 34 | . 12 2 20 . Failed 10 | . 4 . 6 . Catastrophic 1 | . 1 . . . Database Lockouts . | . . . . . Manual 14 | . 4 . 10 . Terminals 33 | . 14 . 19 . Fabricators . | . . . . . Repair Stations . | . . . . . Recycling Units 4 | . 2 . 2 . Scanalyzers 5 | . . . 5 . Garrison Access . | . . . . . Terminal Hacks 18 | . 7 2 9 . Robot Analysis 2 | . . . 2 . Prototype ID Bank 4 | . 2 . 2 . Open Door 2 | . . 2 . . Level Access Points 1 | . 1 . . . Branch Access Points 1 | . 1 . . . Emergency Access Points 1 | . . . 1 . Alert Level 1 | . 1 . . . Locate Traps 1 | . . . 1 . Disarm Traps 1 | . . . 1 . Hauler Manifests 2 | . 1 . 1 . Registered Components 1 | . . . 1 . Zone Layout 1 | . 1 . . . Fabricator Hacks . | . . . . . Repair Station Hacks . | . . . . . Recycling Unit Hacks 4 | . 2 . 2 . Report Inventory 3 | . 2 . 1 . Retrieve Components 1 | . . . 1 . Scanalyzer 5 | . . . 5 . Insert Component 3 | . . . 3 . Analyze 2 | . . . 2 . Garrison Access Hacks . | . . . . . Unauthorized Hacks 7 | . 3 . 4 . Terminals 7 | . 3 . 4 . Botnet 7 | . 3 . 4 . Fabricators . | . . . . . Repair Stations . | . . . . . Recycling Units . | . . . . . Scanalyzers . | . . . . . Garrison Access . | . . . . . Data Cores Recovered . | . . . . . Used . | . . . . . Hacking Detections 12 | . 6 . 6 . Full Trace Events . | . . . . . Feedback Events . | . . . . . Feedback Blocked . | . . . . . Robot Schematics Acquired . | . . . . . Robots Built . | . . . . . Matter . | . . . . . Time . | . . . . . Total Robot Build Rating . | . . . . . Part Schematics Acquired 2 | . . . 2 . Parts Built . | . . . . . Matter . | . . . . . Time . | . . . . . Total Part Build Rating . | . . . . . Parts Repaired . | . . . . . Time . | . . . . . Parts Recycled . | . . . . . Recycled Matter . | . . . . . Retrieved Matter . | . . . . . Retrieved Components 10 | . . . 10 . Parts Scanalyzed 2 | . . . 2 . Part Schematics Acquired 2 | . . . 2 . Parts Damaged . | . . . . . Bothacking | -11 -10 -10 -9 -9 ------------ Run | Scr Mat Min Mat Min Used RIF Installer . | . . . . . Robots Hacked . | . . . . . Non-combat . | . . . . . Combat . | . . . . . Robot Hacks Applied . | . . . . . Relay Couplers Released . | . . . . . Robots Rewired . | . . . . . Allies Hacked . | . . . . . Hacks Repelled . | . . . . . Allies | -11 -10 -10 -9 -9 -------- Run | Scr Mat Min Mat Min Total Allies 3 | . . 3 . . Largest Group 3 | . . 3 3 . Highest-Rated Group 40 | . . 40 40 . Highest-Rated Ally 16 | . . 16 16 . Total Orders 6 | . . . 6 . STAY 3 | . . . 3 . FOLLOW 3 | . . . 3 . Ally Attacks 54 | . . 8 46 . Total Damage 473 | . . 83 390 . Kills 6 | . . 1 5 . Allies Corrupted . | . . . . . Allies Melted . | . . . . . Intel | -11 -10 -10 -9 -9 ------- Run | Scr Mat Min Mat Min Robot Analysis Total 2 | . . . 2 . Derelict Logs Recovered 2 | . . 2 . . Drone Launches . | . . . . . Drone Recoveries . | . . . . . Exploration | -11 -10 -10 -9 -9 ------------- Run | Scr Mat Min Mat Min Turns Passed 2806 | 46 713 852 1067 128 Spaces Moved 1909 | 31 475 584 722 97 Core 11 | 10 . . . 1 Treads . | . . . . . Legs 1898 | 21 475 584 722 96 Wheels . | . . . . . Hover . | . . . . . Flight . | . . . . . Fastest Speed 50 | 50 120 120 120 120 Average Speed 123 | 115 120 130 120 124 Slowest Speed 300 | 200 120 150 120 300 Overloaded Moves . | . . . . . Propulsion Burnouts . | . . . . . Robots Hopped . | . . . . . Cave-ins Triggered . | . . . . . Exploration Rate (%) 48 | 3 69 99 47 25 Regions Visited 4 Branch Regions 2 Pre-discovered Areas . | . . . . . Known Exits Taken 3 | . 1 1 1 . Unknown Exits Taken 1 | 1 . . . . Scrap Searched 1 | . . 1 . . Spaces Dug . | . . . . . Terrain Destroyed 53 | . . . 34 19 Melee . | . . . . . Projectile . | . . . . . AOE 53 | . . . 34 19 Terrain Rammed . | . . . . . Walls Destroyed . | . . . . . Machines Disabled . | . . . . . Actions | -11 -10 -10 -9 -9 --------- Run | Scr Mat Min Mat Min Total 2261 | 38 594 670 858 101 Wait 216 | . 90 72 54 . Move 1905 | 30 474 583 721 97 Hop . | . . . . . Pick Up 15 | 2 5 2 6 . Fast Attach 14 | 6 1 3 4 . Attach 5 | . . 1 3 1 Detach 1 | . . . 1 . Swap 27 | . 7 2 18 . Drop 27 | . 5 6 16 . Fire 51 | . 12 1 35 3 Melee . | . . . . . Ram . | . . . . . Kick . | . . . . . Crush . | . . . . . Escape Stasis . | . . . . . Rewire . | . . . . . Trap . | . . . . . Miscellaneous . | . . . . . Route ------- -11/Scrapyard -10/Materials (discovered 5 exits: *Mat x3 / *Min x2) -10/Mines (discovered 2 exits: *Mat x2) -9/Materials (discovered 2 exits: *Min x2) -9/Mines (discovered 1 exit: *Exi) History --------- Turn | Location | Event 17 | -11/Scrapyard | Discovered new exit (range 15) 47 | -11/Scrapyard | Entered Materials 171 | -10/Materials | Discovered new exit (range 7) 304 | -10/Materials | Build established: Mutant 493 | -10/Materials | Discovered new exit (range 8) 597 | -10/Materials | Identified exit to Mines 597 | -10/Materials | Identified exit to Materials 760 | -10/Materials | Entered Mines 795 | -10/Mines | Assisted by bots powering up and referring to "LRC-V3" 844 | -10/Mines | Met a Derelict who couldn't figure out how to use a Trap Extractor 963 | -10/Mines | YI-UF0 nonchalantly dropped a Grenade Launcher on the ground 1068 | -10/Mines | Learned 4 Materials zone layouts 1246 | -10/Mines | Discovered exit to Materials (range 16) 1266 | -10/Mines | Learned Materials stockpile data 1269 | -10/Mines | Found the Drone Emporium 1277 | -10/Mines | Found Prototype Device 1277 | -10/Mines | Identified Thief Drone Bay 1308 | -10/Mines | Discovered exit to Materials (range 5) 1612 | -10/Mines | Entered Materials 1612 | -9/Materials | Accompanied by 3 allies 1612 | -9/Materials | Evolved 2 slots: Propulsion x2 2059 | -9/Materials | Lost 3 parts (1u2w) 2141 | -9/Materials | Build established: Scavenger-Mutant 2237 | -9/Materials | Discovered new exit (range 12) 2257 | -9/Materials | Identified exit to Mines 2642 | -9/Materials | Discovered exit to Mines (range 15) 2679 | -9/Materials | Entered Mines 2709 | -9/Mines | Deemed a non-threat by the Exiles lab entrance 2709 | -9/Mines | Discovered new exit (range 5) 2713 | -9/Mines | Identified exit to Exiles 2750 | -9/Mines | Assembled infested the area 2790 | -9/Mines | Core integrity fell below 50% 2794 | -9/Mines | Core integrity fell below 20% 2807 | -9/Mines | Destroyed by D-53 Grenadier with Mini Grenade Launcher Last Messages --------------- The unstable cave ceiling collapses. as-93859 destroyed. EM Shotgun destroyed. Aluminum Leg destroyed. Lgt. Nuclear Core destroyed. Aluminum Leg destroyed. as-77806 destroyed. Mni. Grenade Launcher destroyed. Aluminum Leg destroyed. The unstable cave ceiling collapses. as-61111 destroyed. The unstable cave ceiling collapses. as-82528 destroyed. as-73119 destroyed. The unstable cave ceiling collapses. as-31060 destroyed. The unstable cave ceiling collapses. as-22047 destroyed. Aluminum Leg destroyed. The unstable cave ceiling collapses. Map ----- +----------------------------------------------------+ | ???????#### ##?????????????????????? | | ??????????# ##????????????????????? | | ??????????## #????????????????????? | | ???????????## #????????????????????? | | ????????????## "%" #????????????????????? | | ?????????????## " ##????????????????????? | | ?????????????## #?????????????????????? | | ?????????????# #?????????????????????? | | ?????????????# #?????????????????????? | | ??????######## ##?????????????????????? | | ????### # #??????????????????????? | | ???## #??????????????????????? | | ??## % ##??????????????????????? | | ??# ##???????????????????????? | | ??## #????????????????????????? | | ??# # # ####??????????????????????? | | ??## # ##?????????????????????? | | ??# # # dd ###???????????????????? | | ??# # ## a #???????????????????? | | ??### #???????????????????? | | ???# #???????????????????? | | ???## #???????????????????? | | ????## # #???????????????????? | | ?????## # # #???????????????????? | | ??????### #???????????????????? | | ????????### # @ #???????????????????? | | ??????????#### ## u ????????????? | | ?????????????##? ##### #?????????? | | ???????????????? ####??????????????????? | | ???????????????#a###?????????????????????? | | ???????????????a ????????????????????????? | | ??????????????? ????????????????????????? | | ??????????????###????????????????????????? | | ?????????????????????????????????????????? | | ?????????????????????????????????????????? | | ?????????????????????????????????????????? | | ?????????????????????????????????????????? | | ?????????????????????????????????????????? | | ?????????????????????????????????????????? | | ?????????????????????????????????????????? | | ?????????????????????????????????????????? | | ?????????????????????????????????????????? | | ?????????????????????????????????????????? | | ?????????????????????????????????????????? | | ?????????????????????????????????????????? | | ?????????????????????????????????????????? | | ?????????????????????????????????????????? | | | | | | | +----------------------------------------------------+ Best States ------------- Heat Dissipation 28 Energy Generation 14 Energy Capacity 250 Matter Stores 300 Matter Capacity 300 Sight Range 16 Terrain Scan Density 10 Armor Coverage 225 Evasion (%) 40 Item Schematics ----------------- Lgt. Nuclear Core | -9/Materials | Scanalyzed Mining Laser | -9/Materials | Scanalyzed Robot Schematics ------------------ None Fabricated ------------ Nothing Alien Tech Used ----------------- None Achievements -------------- Quantum Hacking Challenges ------------ None Game ------ Seed MicroSalvageDoublenader Manual? 0 Play Time 00:52:23 Cumulative 77.4 hours Start 2022.01.03 @ 11:48:35 End 2022.01.03 @ 17:47:01 Sessions 3 Manual Loads 0 Difficulty Rogue Special Mode None Game No. 23 Rogue 23 Adventurer 0 Explorer 0 Win Type - Total 0 Types 0/0/0/0/0/0/0/0/0 Lore% 36 Gallery% 47 Achievement% 34 Wizard Run 0 Options --------- ASCII 0 Keyboard 0 Movement Mouse Keybinds 0 Fullscreen 1 Font 18/SmallcapsGlow Map View 76x50 Tactical HUD 0 Map Filters NONE Filters NONE Steam 1 RUN: 19382aa7-a9fa-43ef-b2a6-3dc2d855008d